lending/lending_fUSD_20240110
["ID","MTS","AMOUNT","RATE_DAILY","PERIOD"]
[311093899,1704901902192,-722.18,0.00035616,2]
[311093900,1704901902201,-682.55,0.00035616,2]
[311093901,1704901902210,-890.2,0.00035616,2]
[311093902,1704901902220,-1162.53,0.00035616,2]
[311093903,1704901902230,-1171.63,0.00035616,2]
[311093904,1704901902240,-838.5,0.00035616,2]
[311093905,1704901902249,-1201.37,0.00035616,2]
[311093906,1704901902258,-589.12,0.00035616,2]
[311093907,1704901902268,-1149.89,0.00035616,2]
[311093908,1704901902277,-1798.18,0.00035616,2]
[311093909,1704901902290,-596.51,0.00035616,2]
[311093910,1704901902300,-1893.93,0.00035616,2]
[311093911,1704901902310,-1002.66,0.00035616,2]
[311093912,1704901902320,-860.47,0.00035616,2]
[311093913,1704901902330,-500.0,0.00035616,2]
[311093914,1704901902340,-633.99,0.00035616,2]
[311093915,1704901902350,-542.38,0.00035616,2]
[311093916,1704901902361,-3386.41,0.00035616,2]
[311093917,1704901902370,-500.0,0.00035616,2]
[311093918,1704901902379,-756.19,0.00035616,2]
[311093919,1704901902389,-3242.4,0.00035616,2]
[311093920,1704901902399,-816.45,0.00035616,2]
[311093921,1704901902409,-153.84,0.00035616,2]
[311093922,1704901902418,-150.0,0.00035616,2]
[311093923,1704901902428,-1849.249,0.00035665,4]
[311093924,1704901902437,-1849.25,0.00035665,4]
[311093925,1704901902446,-1849.249,0.00035665,4]
[311093926,1704901902456,-1849.25,0.00035665,4]
[311093927,1704901902466,-1849.25,0.00035665,4]
[311093928,1704901902475,-500.0,0.00035749,7]
[311093929,1704901902485,-6293.78,0.00035798,2]
[311093930,1704901902494,-200.0,0.000358,11]
[311093931,1704901902505,-429.08,0.00035801,2]
[311093932,1704901902515,-4135.17402628,0.00035805,2]
[311093933,1704901902524,-150.0,0.0003586,120]
[311093934,1704901902539,-500.0,0.0003589,2]
[311093935,1704901902549,-1164.78,0.0003589,2]
[311093936,1704901902558,-649.73,0.0003589,2]
[311093937,1704901902567,-500.0,0.0003589,2]
[311093938,1704901902577,-500.0,0.0003589,2]
[311093939,1704901902586,-500.0,0.0003589,2]
[311093940,1704901902596,-580.78,0.0003589,2]
[311093941,1704901902605,-500.0,0.0003589,2]
[311093942,1704901902614,-624.51,0.0003589,2]
[311093943,1704901902625,-769.6,0.0003589,2]
[311093944,1704901902636,-646.9,0.0003589,2]
[311093945,1704901902646,-530.33,0.0003589,2]
[311093946,1704901902655,-815.38,0.0003589,2]
[311093947,1704901902665,-603.48,0.0003589,2]
[311093948,1704901902676,-755.23,0.0003589,2]
[311093949,1704901902685,-550.99,0.0003589,2]
[311093950,1704901902696,-594.48,0.0003589,2]
[311093951,1704901902705,-500.0,0.0003589,2]
[311093952,1704901902715,-800.14,0.0003589,2]
[311093953,1704901902724,-707.25,0.0003589,2]
[311093954,1704901902734,-520.54,0.0003589,2]
[311093955,1704901902744,-477.66161824,0.0003589,2]
[311093956,1704901902755,-672.75,0.0003589,2]
[311093957,1704901902765,-528.46,0.0003589,2]
[311093958,1704901902775,-1198.47,0.0003589,2]
[311093959,1704901902789,-632.59,0.0003589,2]
[311093960,1704901902798,-1056.6,0.0003589,2]
[311093961,1704901902809,-586.76,0.0003589,2]
[311093962,1704901902819,-731.92,0.0003589,2]
[311093963,1704901902830,-9210.75,0.0003589,2]
[311093964,1704901902841,-809.77,0.0003589,2]
[311093965,1704901902851,-663.73,0.0003589,2]
[311093966,1704901902861,-662.54,0.0003589,2]
[311093967,1704901902871,-590.00521457,0.0003589,2]
[311093968,1704901902881,-534.71,0.0003589,2]
[311093969,1704901902891,-6627.1,0.0003589,2]
[311093970,1704901902900,-1891.17,0.0003589,2]
[311093971,1704901902910,-1534.85,0.0003589,2]
[311093972,1704901902919,-575.97901598,0.0003589,2]
[311093973,1704901902930,-2924.88,0.0003589,2]
[311093974,1704901902940,-765.82,0.0003589,2]
[311093975,1704901902951,-500.0,0.0003589,2]
[311093976,1704901902962,-3449.62,0.0003589,2]
[311093977,1704901902972,-750.66,0.0003589,2]
[311093978,1704901902983,-579.7,0.0003589,2]
[311093979,1704901902993,-959.31,0.0003589,2]
[311093980,1704901903003,-7311.05,0.0003589,2]
[311093981,1704901903013,-1065.45,0.0003589,2]
[311093982,1704901903023,-1035.64,0.0003589,2]
[311093983,1704901903034,-535.19140599,0.0003589,2]
[311093984,1704901903043,-2187.38,0.0003589,2]
[311093985,1704901903053,-702.32,0.0003589,2]
[311093986,1704901903063,-1173.1,0.0003589,2]
[311093987,1704901903073,-977.57,0.0003589,2]
[311093988,1704901903083,-905.27,0.0003589,2]
[311093989,1704901903094,-539.72,0.0003589,2]
[311093990,1704901903103,-2184.67,0.0003589,2]
[311093991,1704901903114,-2851.32,0.0003589,2]
[311093992,1704901903123,-1084.11,0.0003589,2]
[311093993,1704901903133,-554.29,0.0003589,2]
[311093994,1704901903142,-743.97,0.0003589,2]
[311093995,1704901903152,-652.69,0.0003589,2]
[311093996,1704901903161,-2290.02,0.0003589,2]
[311093997,1704901903170,-3550.06,0.0003589,2]
[311093998,1704901903180,-2468.23,0.0003589,2]
[311093999,1704901903189,-741.58,0.0003589,2]
[311094000,1704901903198,-1013.12,0.0003589,2]
[311094001,1704901903208,-2755.49,0.0003589,2]
[311094002,1704901903217,-1367.5,0.0003589,2]
[311094003,1704901903226,-523.18,0.0003589,2]
[311094004,1704901903236,-606.41,0.0003589,2]
[311094005,1704901903245,-1214.0,0.0003589,2]
[311094006,1704901903254,-1010.49,0.0003589,2]
[311094007,1704901903263,-1052.82,0.0003589,2]
[311094008,1704901903272,-1111.49,0.0003589,2]
[311094009,1704901903283,-517.3,0.0003589,2]
[311094010,1704901903292,-652.84,0.0003589,2]
[311094011,1704901903302,-22537.3,0.0003589,2]
[311094012,1704901903311,-1027.93,0.0003589,2]
[311094013,1704901903320,-619.25,0.0003589,2]
[311094014,1704901903329,-540.69,0.0003589,2]
[311094015,1704901903339,-531.22,0.0003589,2]
[311094016,1704901903348,-949.96,0.0003589,2]
[311094017,1704901903358,-822.79,0.0003589,2]
[311094018,1704901903366,-519.89920591,0.0003589,2]
[311094019,1704901903375,-561.93,0.0003589,2]
[311094020,1704901903385,-841.87,0.0003589,2]
[311094021,1704901903395,-4149.02,0.0003589,2]
[311094022,1704901903404,-500.0,0.0003589,2]
[311094023,1704901903414,-1144.17,0.0003589,2]
[311094024,1704901903423,-1384.54,0.0003589,2]
[311094025,1704901903432,-2853.73,0.0003589,2]
[311094026,1704901903442,-1585.1,0.0003589,2]
[311094027,1704901903451,-565.73,0.0003589,2]
[311094028,1704901903460,-518.12,0.0003589,2]
[311094029,1704901903470,-546.42,0.0003589,2]
[311094030,1704901903479,-5771.71,0.0003589,2]
[311094031,1704901903488,-1094.06,0.0003589,2]
[311094032,1704901903498,-1075.13,0.0003589,2]
[311094033,1704901903507,-512.19425956,0.0003589,2]
[311094034,1704901903516,-1529.8,0.0003589,2]
[311094035,1704901903526,-704.92,0.0003589,2]
[311094036,1704901903537,-6554.84,0.0003589,2]
[311094037,1704901903547,-500.0,0.0003589,2]
[311094038,1704901903556,-515.73,0.0003589,2]
[311094039,1704901903566,-606.81,0.0003589,2]
[311094040,1704901903575,-3847.89,0.0003589,2]
[311094041,1704901903585,-1873.06,0.0003589,2]
[311094042,1704901903594,-1237.27,0.0003589,2]
[311094043,1704901903603,-722.18,0.0003589,2]
[311094044,1704901903612,-682.55,0.0003589,2]
[311094045,1704901903623,-890.2,0.0003589,2]
[311094046,1704901903633,-1162.53,0.0003589,2]
[311094047,1704901903642,-1171.63,0.0003589,2]
[311094048,1704901903651,-1201.37,0.0003589,2]
[311094049,1704901903661,-838.5,0.0003589,2]
[311094050,1704901903670,-589.12,0.0003589,2]
[311094051,1704901903679,-1149.89,0.0003589,2]
[311094052,1704901903689,-1798.18,0.0003589,2]
[311094053,1704901903698,-596.51,0.0003589,2]
[311094054,1704901903707,-1893.93,0.0003589,2]
[311094055,1704901903717,-1002.66,0.0003589,2]
[311094056,1704901903726,-860.47,0.0003589,2]
[311094057,1704901903734,-161.75709892,0.0003589,2]
[311094058,1704901903744,-633.99,0.0003589,2]
[311094059,1704901903754,-542.38,0.0003589,2]
[311094060,1704901903763,-3386.41,0.0003589,2]
[311094061,1704901903772,-500.0,0.0003589,2]
[311094062,1704901903781,-756.19,0.0003589,2]
[311094063,1704901903791,-3242.4,0.0003589,2]
[311094064,1704901903800,-816.45,0.0003589,2]
[311094065,1704901903810,-263.279856,0.0003589,7]
[311094066,1704901903819,-263.27984828,0.0003589,7]
[311094067,1704901903828,-151.0,0.0003589,7]
[311094068,1704901903838,-3903.948256,0.0003589,7]
[311094069,1704901903848,-3903.948247,0.0003589,7]
[311094070,1704901903858,-400.0,0.000359,13]
[311094071,1704901903868,-500.0,0.00035982,7]
[311094072,1704901903878,-200.0,0.00035987,2]
[311094073,1704901903888,-100000.0,0.00036,2]
[311094074,1704901903898,-207.210858,0.00036,7]
[311094075,1704901903907,-207.210854,0.00036,7]
[311094076,1704901903918,-559.79,0.00036,5]
[311094077,1704901903928,-101939.14889838,0.00036,3]
[311094078,1704901903937,-3000.0,0.00036,2]
[311094079,1704901903947,-208.0,0.00036,120]
[311094080,1704901903957,-87635.63467626,0.00036,2]
[311094081,1704901903966,-422.3819,0.00036,29]
[311094082,1704901903976,-92707.4335357,0.00036,4]
[311094083,1704901903985,-1706.63,0.00036,30]
[311094084,1704901903995,-1000.0,0.00036,6]
[311094085,1704901904006,-1000.0,0.00036,6]
[311094086,1704901904017,-1009.0,0.00036,6]
[311094087,1704901904027,-32258.11748878,0.00036,7]
[311094088,1704901904039,-999.0,0.00036,3]
[311094089,1704901904049,-900.0,0.00036,37]
[311094090,1704901904059,-5444.0,0.00036,10]
[311094091,1704901904070,-305.27768754,0.00036,3]
[311094092,1704901904080,-764.63967946,0.00036,4]
[311094093,1704901904090,-804.0,0.00036,2]
[311094094,1704901904100,-5025.21548293,0.00036,2]
[311094095,1704901904109,-129366.03979821,0.00036,2]
[311094096,1704901904119,-25000.0,0.00036,2]
[311094097,1704901904129,-504.13933884,0.00036,5]
[311094098,1704901904139,-255.0,0.00036,2]
[311094099,1704901904149,-10000.0,0.00036,2]
[311094100,1704901904158,-151.0,0.00036,7]
[311094101,1704901904168,-38783.90420931,0.00036,2]
[311094102,1704901904177,-151.13,0.00036,2]
[311094103,1704901904187,-151.13,0.00036,2]
[311094104,1704901904197,-151.13,0.00036,2]
[311094105,1704901904206,-151.13,0.00036,2]
[311094106,1704901904215,-151.13,0.00036,2]
[311094107,1704901904225,-151.13,0.00036,2]
[311094108,1704901904234,-151.13,0.00036,2]
[311094109,1704901904243,-151.13,0.00036,2]
[311094110,1704901904253,-151.13,0.00036,2]
[311094111,1704901904262,-151.13,0.00036,2]
[311094112,1704901904272,-151.13,0.00036,2]
[311094113,1704901904281,-151.13,0.00036,2]
[311094114,1704901904293,-151.13,0.00036,2]
[311094115,1704901904305,-151.13,0.00036,2]
[311094116,1704901904314,-151.13,0.00036,2]
[311094117,1704901904324,-151.13,0.00036,2]
[311094118,1704901904333,-151.13,0.00036,2]
[311094119,1704901904343,-151.13,0.00036,2]
[311094120,1704901904352,-151.13,0.00036,2]
[311094121,1704901904362,-151.13,0.00036,2]
[311094122,1704901904371,-151.13,0.00036,2]
[311094123,1704901904381,-151.13,0.00036,2]
[311094124,1704901904391,-151.13,0.00036,2]
[311094125,1704901904400,-151.13,0.00036,2]
[311094126,1704901904409,-151.13,0.00036,2]
[311094127,1704901904419,-151.13,0.00036,2]
[311094128,1704901904428,-151.13,0.00036,2]
[311094129,1704901904437,-151.13,0.00036,2]
[311094130,1704901904446,-151.13,0.00036,2]
[311094131,1704901904455,-151.13,0.00036,2]
[311094132,1704901904464,-151.13,0.00036,2]
[311094133,1704901904472,-151.13,0.00036,2]
[311094134,1704901904481,-151.13,0.00036,2]
[311094135,1704901904490,-151.13,0.00036,2]
[311094136,1704901904499,-151.13,0.00036,2]
[311094137,1704901904509,-151.13,0.00036,2]
[311094138,1704901904518,-151.13,0.00036,2]
[311094139,1704901904528,-151.13,0.00036,2]
[311094140,1704901904541,-151.13,0.00036,2]
[311094141,1704901904550,-151.13,0.00036,2]
[311094142,1704901904560,-151.13,0.00036,2]
[311094143,1704901904569,-151.13,0.00036,2]
[311094144,1704901904578,-151.13,0.00036,2]
[311094145,1704901904587,-151.13,0.00036,2]
[311094146,1704901904596,-151.13,0.00036,2]
[311094147,1704901904605,-151.13,0.00036,2]
[311094148,1704901904614,-151.13,0.00036,2]
[311094149,1704901904624,-151.13,0.00036,2]
[311094150,1704901904633,-151.13,0.00036,2]
[311094151,1704901904642,-151.13,0.00036,2]
[311094152,1704901904651,-151.13,0.00036,2]
[311094153,1704901904661,-151.13,0.00036,2]
[311094154,1704901904855,-151.13,0.00036,2]
[311094155,1704901904866,-151.13,0.00036,2]
[311094156,1704901904876,-151.13,0.00036,2]
[311094157,1704901904885,-151.13,0.00036,2]
[311094158,1704901904894,-151.13,0.00036,2]
[311094159,1704901904904,-151.13,0.00036,2]
[311094160,1704901904913,-151.13,0.00036,2]
[311094161,1704901904923,-151.13,0.00036,2]
[311094162,1704901904932,-151.13,0.00036,2]
[311094163,1704901904942,-151.13,0.00036,2]
[311094164,1704901904951,-151.13,0.00036,2]
[311094165,1704901904961,-151.13,0.00036,2]
[311094166,1704901904970,-151.13,0.00036,2]
[311094167,1704901904980,-151.13,0.00036,2]
[311094168,1704901904989,-151.13,0.00036,2]
[311094169,1704901904999,-151.13,0.00036,2]
[311094170,1704901905009,-151.13,0.00036,2]
[311094171,1704901905018,-151.13,0.00036,2]
[311094172,1704901905027,-151.13,0.00036,2]
[311094173,1704901905038,-151.13,0.00036,2]
[311094174,1704901905048,-151.13,0.00036,2]
[311094175,1704901905058,-151.13,0.00036,2]
[311094176,1704901905068,-151.13,0.00036,2]
[311094177,1704901905079,-151.13,0.00036,2]
[311094178,1704901905089,-151.13,0.00036,2]
[311094179,1704901905099,-151.13,0.00036,2]
[311094180,1704901905109,-151.13,0.00036,2]
[311094181,1704901905119,-151.13,0.00036,2]
[311094182,1704901905130,-151.13,0.00036,2]
[311094183,1704901905140,-151.13,0.00036,2]
[311094184,1704901905150,-151.13,0.00036,2]
[311094185,1704901905160,-151.13,0.00036,2]
[311094186,1704901905170,-151.13,0.00036,2]
[311094187,1704901905180,-151.13,0.00036,2]
[311094188,1704901905190,-151.13,0.00036,2]
[311094189,1704901905199,-151.13,0.00036,2]
[311094190,1704901905211,-151.13,0.00036,2]
[311094191,1704901905221,-151.13,0.00036,2]
[311094192,1704901905230,-151.13,0.00036,2]
[311094193,1704901905240,-151.13,0.00036,2]
[311094194,1704901905250,-151.13,0.00036,2]
[311094195,1704901905263,-151.13,0.00036,2]
[311094196,1704901905273,-151.13,0.00036,2]
[311094197,1704901905282,-151.13,0.00036,2]
[311094198,1704901905295,-151.13,0.00036,2]
[311094199,1704901905305,-151.13,0.00036,2]
[311094200,1704901905314,-151.13,0.00036,2]
[311094201,1704901905324,-151.13,0.00036,2]
[311094202,1704901905334,-450.0,0.00036012,3]
[311094203,1704901905344,-213.0,0.0003604,2]
[311094204,1704901905354,-210.0,0.0003604,2]
[311094205,1704901905365,-247.22115209,0.00036041,2]
[311094206,1704901905376,-1259.990295,0.00036049,2]
[311094207,1704901905386,-191.7046,0.00036049,2]
[311094208,1704901905396,-302.547178,0.00036049,2]
[311094209,1704901905405,-261.565038,0.00036049,2]
[311094210,1704901905415,-302.547178,0.00036049,2]
[311094211,1704901905425,-261.565037,0.00036049,2]
[311094212,1704901905435,-163.040935,0.00036049,2]
[311094213,1704901905444,-378.604513,0.00036049,2]
[311094214,1704901905453,-195.236911,0.00036049,2]
[311094215,1704901905464,-261.565037,0.00036049,2]
[311094216,1704901905474,-261.565037,0.00036049,2]
[311094217,1704901905485,-195.236911,0.00036049,2]
[311094218,1704901905495,-195.236912,0.00036049,2]
[311094219,1704901905505,-261.565037,0.00036049,2]
[311094220,1704901905515,-516.373053,0.00036049,2]
[311094221,1704901905526,-352.549976,0.00036049,2]
[311094222,1704901905537,-179.896193,0.00036049,2]
[311094223,1704901905549,-171.479267,0.00036049,2]
[311094224,1704901905559,-2608.089747,0.00036049,2]
[311094225,1704901905569,-19007.527382,0.00036049,2]
[311094226,1704901905579,-154.152499,0.00036049,2]
[311094227,1704901905589,-171.111594,0.00036049,2]
[311094228,1704901905599,-258.970383,0.00036049,2]
[311094229,1704901905609,-1407.430323,0.00036049,2]
[311094230,1704901905618,-212.290862,0.00036049,2]
[311094231,1704901905628,-938.286882,0.00036049,2]
[311094232,1704901905638,-265.36358,0.00036049,2]
[311094233,1704901905647,-160.08501,0.00036049,2]
[311094234,1704901905657,-821.072483,0.00036049,2]
[311094235,1704901905667,-275.8589381,0.00036064,2]
[311094236,1704901905677,-278.792974,0.00036064,2]
[311094237,1704901905686,-791.6584414,0.00036064,2]
[311094238,1704901905696,-296.3044237,0.00036064,2]
[311094239,1704901905706,-32374.7332884,0.00036064,2]
[311094240,1704901905716,-411.4704906,0.00036064,2]
[311094241,1704901905727,-45565.31133495,0.00036089,2]
[311094242,1704901905737,-45565.31133489,0.00036089,2]
[311094243,1704901905747,-45565.31133489,0.00036089,2]
[311094244,1704901905758,-45565.31133489,0.00036089,2]
[311094245,1704901905768,-45565.31133489,0.00036089,2]
[311094246,1704901905778,-45565.31133489,0.00036089,2]
[311094247,1704901905788,-45565.31133489,0.00036089,2]
[311094248,1704901905798,-45565.31133489,0.00036089,2]
[311094249,1704901905808,-45565.31133489,0.00036089,2]
[311094250,1704901905819,-152.0,0.000361,2]
[311094251,1704901905829,-4135.17402628,0.00036137,2]
[311094252,1704901905839,-5000.0,0.00036152,4]
[311094253,1704901905850,-1164.78,0.00036164,2]
[311094254,1704901905860,-649.73,0.00036164,2]
[311094255,1704901905869,-220.93610378,0.00036164,2]
[311094256,1704901905879,-442.27362772,0.00036164,2]
[311094257,1704901905889,-500.0,0.00036164,2]
[311094258,1704901905899,-580.78,0.00036164,2]
[311094259,1704901905909,-257.71817497,0.00036164,2]
[311094260,1704901905918,-624.51,0.00036164,2]
[311094261,1704901905928,-769.6,0.00036164,2]
[311094262,1704901905939,-646.9,0.00036164,2]
[311094263,1704901905948,-530.33,0.00036164,2]
[311094264,1704901905960,-815.38,0.00036164,2]
[311094265,1704901905969,-603.48,0.00036164,2]
[311094266,1704901905980,-755.23,0.00036164,2]
[311094267,1704901905990,-550.99,0.00036164,2]
[311094268,1704901906000,-575.54376746,0.00036164,2]
[311094269,1704901906014,-800.14,0.00036164,2]
[311094270,1704901906024,-707.25,0.00036164,2]
[311094271,1704901906034,-520.54,0.00036164,2]
[311094272,1704901906045,-672.75,0.00036164,2]
[311094273,1704901906055,-528.46,0.00036164,2]
[311094274,1704901906065,-1198.47,0.00036164,2]
[311094275,1704901906075,-632.59,0.00036164,2]
[311094276,1704901906085,-1056.6,0.00036164,2]
[311094277,1704901906095,-586.76,0.00036164,2]
[311094278,1704901906105,-731.92,0.00036164,2]
[311094279,1704901906116,-9210.75,0.00036164,2]
[311094280,1704901906127,-809.77,0.00036164,2]
[311094281,1704901906137,-663.73,0.00036164,2]
[311094282,1704901906147,-662.54,0.00036164,2]
[311094283,1704901906157,-534.71,0.00036164,2]
[311094284,1704901906168,-6627.1,0.00036164,2]
[311094285,1704901906178,-1891.17,0.00036164,2]
[311094286,1704901906188,-1534.85,0.00036164,2]
[311094287,1704901906198,-2924.88,0.00036164,2]
[311094288,1704901906207,-765.82,0.00036164,2]
[311094289,1704901906217,-297.29203439,0.00036164,2]
[311094290,1704901906226,-3449.62,0.00036164,2]
[311094291,1704901906236,-750.66,0.00036164,2]
[311094292,1704901906245,-579.7,0.00036164,2]
[311094293,1704901906255,-959.31,0.00036164,2]
[311094294,1704901906265,-7311.05,0.00036164,2]
[311094295,1704901906275,-1065.45,0.00036164,2]
[311094296,1704901906287,-1035.64,0.00036164,2]
[311094297,1704901906297,-2187.38,0.00036164,2]
[311094298,1704901906307,-702.32,0.00036164,2]
[311094299,1704901906316,-1173.1,0.00036164,2]
[311094300,1704901906326,-977.57,0.00036164,2]
[311094301,1704901906336,-905.27,0.00036164,2]
[311094302,1704901906346,-539.72,0.00036164,2]
[311094303,1704901906357,-2184.67,0.00036164,2]
[311094304,1704901906368,-2851.32,0.00036164,2]
[311094305,1704901906378,-1084.11,0.00036164,2]
[311094306,1704901906392,-554.29,0.00036164,2]
[311094307,1704901906402,-743.97,0.00036164,2]
[311094308,1704901906413,-652.69,0.00036164,2]
[311094309,1704901906423,-2290.02,0.00036164,2]
[311094310,1704901906433,-3550.06,0.00036164,2]
[311094311,1704901906443,-2468.23,0.00036164,2]
[311094312,1704901906454,-741.58,0.00036164,2]
[311094313,1704901906463,-1013.12,0.00036164,2]
[311094314,1704901906473,-2755.49,0.00036164,2]
[311094315,1704901906483,-1367.5,0.00036164,2]
[311094316,1704901906493,-606.41,0.00036164,2]
[311094317,1704901906503,-1214.0,0.00036164,2]
[311094318,1704901906514,-1010.49,0.00036164,2]
[311094319,1704901906523,-1052.82,0.00036164,2]
[311094320,1704901906535,-1111.49,0.00036164,2]
[311094321,1704901906546,-517.3,0.00036164,2]
[311094322,1704901906556,-652.84,0.00036164,2]
[311094323,1704901906566,-22537.3,0.00036164,2]
[311094324,1704901906576,-1027.93,0.00036164,2]
[311094325,1704901906586,-619.25,0.00036164,2]
[311094326,1704901906596,-540.69,0.00036164,2]
[311094327,1704901906606,-531.22,0.00036164,2]
[311094328,1704901906615,-949.96,0.00036164,2]
[311094329,1704901906625,-822.79,0.00036164,2]
[311094330,1704901906635,-561.93,0.00036164,2]
[311094331,1704901906645,-841.87,0.00036164,2]
[311094332,1704901906657,-500.0,0.00036164,2]
[311094333,1704901906667,-4149.02,0.00036164,2]
[311094334,1704901906677,-1144.17,0.00036164,2]
[311094335,1704901906686,-1384.54,0.00036164,2]
[311094336,1704901906695,-2853.73,0.00036164,2]
[311094337,1704901906705,-1585.1,0.00036164,2]
[311094338,1704901906715,-565.73,0.00036164,2]
[311094339,1704901906725,-518.12,0.00036164,2]
[311094340,1704901906735,-546.42,0.00036164,2]
[311094341,1704901906745,-5771.71,0.00036164,2]
[311094342,1704901906756,-1094.06,0.00036164,2]
[311094343,1704901906766,-1075.13,0.00036164,2]
[311094344,1704901906776,-1529.8,0.00036164,2]
[311094345,1704901906789,-704.92,0.00036164,2]
[311094346,1704901906799,-6554.84,0.00036164,2]
[311094347,1704901906809,-182.58768644,0.00036164,2]
[311094348,1704901906819,-515.73,0.00036164,2]
[311094349,1704901906828,-606.81,0.00036164,2]
[311094350,1704901906838,-3847.89,0.00036164,2]
[311094351,1704901906847,-1873.06,0.00036164,2]
[311094352,1704901906857,-1237.27,0.00036164,2]
[311094353,1704901906867,-722.18,0.00036164,2]
[311094354,1704901906878,-682.55,0.00036164,2]
[311094355,1704901906888,-890.2,0.00036164,2]
[311094356,1704901906898,-1162.53,0.00036164,2]
[311094357,1704901906909,-1171.63,0.00036164,2]
[311094358,1704901906919,-1201.37,0.00036164,2]
[311094359,1704901906929,-838.5,0.00036164,2]
[311094360,1704901906939,-589.12,0.00036164,2]
[311094361,1704901906949,-1149.89,0.00036164,2]
[311094362,1704901906959,-1798.18,0.00036164,2]
[311094363,1704901906969,-596.51,0.00036164,2]
[311094364,1704901906979,-1893.93,0.00036164,2]
[311094365,1704901906989,-1002.66,0.00036164,2]
[311094366,1704901906998,-860.47,0.00036164,2]
[311094367,1704901907008,-633.99,0.00036164,2]
[311094368,1704901907018,-542.38,0.00036164,2]
[311094369,1704901907027,-3386.41,0.00036164,2]
[311094370,1704901907039,-429.73153913,0.00036164,2]
[311094371,1704901907048,-756.19,0.00036164,2]
[311094372,1704901907058,-3242.4,0.00036164,2]
[311094373,1704901907067,-816.45,0.00036164,2]
[311094374,1704901907077,-1201.6008838,0.0003617,8]
[311094375,1704901907087,-1201.60088373,0.0003617,8]
[311094376,1704901907097,-1201.60088373,0.0003617,8]
[311094377,1704901907107,-1201.60088373,0.0003617,8]
[311094378,1704901907118,-1000.0,0.000362,2]
[311094379,1704901907128,-2019.020746,0.000362,2]
[311094380,1704901907137,-500.0,0.00036215,7]
[311094381,1704901907147,-151.67581312,0.0003623,30]
[311094382,1704901907156,-5714.518753,0.000363,4]
[311094383,1704901907166,-549.716711,0.000363,10]
[311094384,1704901907176,-208.241,0.00036408,4]
[311094385,1704901907186,-208.241,0.00036408,4]
[311094386,1704901907197,-208.241,0.00036408,4]
[311094387,1704901907207,-208.241,0.00036408,4]
[311094388,1704901907216,-208.242,0.00036408,4]
[311094389,1704901907226,-1164.86408329,0.00036438,2]
[311094390,1704901907235,-649.75231409,0.00036438,2]
[311094391,1704901907245,-240.55957516,0.00036438,2]
[311094392,1704901907255,-580.87399224,0.00036438,2]
[311094393,1704901907265,-624.68912715,0.00036438,2]
[311094394,1704901907276,-769.62674506,0.00036438,2]
[311094395,1704901907287,-647.05269296,0.00036438,2]
[311094396,1704901907297,-530.51203746,0.00036438,2]
[311094397,1704901907307,-815.53316685,0.00036438,2]
[311094398,1704901907318,-603.48008607,0.00036438,2]